[Event "Late-Titled-Tuesday-Blitz-September-12-2023"]
[Site "Chess.com"]
[Date "2023.09.12"]
[Round "3"]
[White "GMKrikor"]
[Black "karinachess1"]
[Result "1-0"]
[WhiteElo "2884"]
[BlackElo "2615"]
[TimeControl "180+1"]
[EndTime "14:27:37 PDT"]
[Termination "GMKrikor won on time"]

1. Nf3 {[%clk 0:03:00.9]} 1... Nf6 {[%clk 0:02:59]} 2. c4 {[%clk 0:03:01]} 2...
e6 {[%clk 0:02:56.7]} 3. Nc3 {[%clk 0:03:00.5]} 3... d5 {[%clk 0:02:57]} 4. cxd5
{[%clk 0:03:01.4]} 4... exd5 {[%clk 0:02:57.1]} 5. d4 {[%clk 0:03:02.1]} 5...
Bb4 {[%clk 0:02:55.4]} 6. Bf4 {[%clk 0:03:01.3]} 6... O-O {[%clk 0:02:42.7]} 7.
e3 {[%clk 0:02:59.2]} 7... c6 {[%clk 0:02:40.1]} 8. Bd3 {[%clk 0:02:57.7]} 8...
Bd6 {[%clk 0:02:27.1]} 9. Bxd6 {[%clk 0:02:56.4]} 9... Qxd6 {[%clk 0:02:27.1]}
10. Qb3 {[%clk 0:02:57.3]} 10... Nbd7 {[%clk 0:02:25.3]} 11. O-O {[%clk
0:02:57]} 11... Re8 {[%clk 0:02:25.4]} 12. h3 {[%clk 0:02:56.5]} 12... Qe7
{[%clk 0:02:20.9]} 13. Rac1 {[%clk 0:02:52.5]} 13... Ne4 {[%clk 0:02:18.1]} 14.
Qc2 {[%clk 0:02:37.6]} 14... Ndf6 {[%clk 0:02:13.7]} 15. Ne5 {[%clk 0:02:37.7]}
15... Nd6 {[%clk 0:01:53]} 16. Rce1 {[%clk 0:02:28.9]} 16... g6 {[%clk
0:01:40.4]} 17. f3 {[%clk 0:02:27.9]} 17... Nh5 {[%clk 0:01:13.5]} 18. Qf2
{[%clk 0:02:25.1]} 18... Ng7 {[%clk 0:00:47]} 19. e4 {[%clk 0:02:17.7]} 19...
Be6 {[%clk 0:00:46.7]} 20. Ng4 {[%clk 0:02:04.6]} 20... h5 {[%clk 0:00:36.6]}
21. Ne3 {[%clk 0:01:30.9]} 21... dxe4 {[%clk 0:00:36.5]} 22. fxe4 {[%clk
0:01:31.8]} 22... Qd8 {[%clk 0:00:36.9]} 23. d5 {[%clk 0:01:24.5]} 23... Bd7
{[%clk 0:00:35.2]} 24. Nc4 {[%clk 0:01:16.8]} 24... Nxc4 {[%clk 0:00:22.3]} 25.
Qxf7+ {[%clk 0:01:16.5]} 25... Kh7 {[%clk 0:00:22.7]} 26. Bxc4 {[%clk
0:01:17.4]} 26... Rf8 {[%clk 0:00:18.6]} 27. Qxf8 {[%clk 0:01:16.2]} 27... Qxf8
{[%clk 0:00:19.5]} 28. Rxf8 {[%clk 0:01:16]} 28... Rxf8 {[%clk 0:00:20.4]} 29.
d6 {[%clk 0:01:16.3]} 29... Ne6 {[%clk 0:00:19.1]} 30. e5 {[%clk 0:01:15.4]}
30... Rf4 {[%clk 0:00:17.5]} 31. Rf1 {[%clk 0:01:01.7]} 31... Rxf1+ {[%clk
0:00:10.3]} 32. Kxf1 {[%clk 0:01:01.8]} 32... Kg7 {[%clk 0:00:10.1]} 33. Ne4
{[%clk 0:00:49]} 33... b6 {[%clk 0:00:10.3]} 34. Nf6 {[%clk 0:00:49]} 34... Nc5
{[%clk 0:00:08.8]} 35. b4 {[%clk 0:00:47]} 35... Be6 {[%clk 0:00:09.3]} 36. bxc5
{[%clk 0:00:44.2]} 36... Bxc4+ {[%clk 0:00:09.2]} 37. Kf2 {[%clk 0:00:40.7]}
37... Kf7 {[%clk 0:00:09.8]} 38. cxb6 {[%clk 0:00:32.8]} 38... axb6 {[%clk
0:00:10.7]} 39. a3 {[%clk 0:00:32.3]} 39... Ke6 {[%clk 0:00:11.2]} 40. Ke3
{[%clk 0:00:33]} 40... c5 {[%clk 0:00:10.3]} 41. Kf4 {[%clk 0:00:28.9]} 41...
Bf1 {[%clk 0:00:08.2]} 42. Kf3 {[%clk 0:00:20.5]} 42... b5 {[%clk 0:00:07.8]}
43. h4 {[%clk 0:00:20.2]} 43... b4 {[%clk 0:00:07.7]} 44. axb4 {[%clk
0:00:20.4]} 44... cxb4 {[%clk 0:00:08.6]} 45. Ne4 {[%clk 0:00:20.9]} 45... Bc4
{[%clk 0:00:05.7]} 46. Nc5+ {[%clk 0:00:21]} 46... Kf7 {[%clk 0:00:05.1]} 47.
Ke3 {[%clk 0:00:19]} 47... Bd5 {[%clk 0:00:05.6]} 48. g3 {[%clk 0:00:18.8]}
48... b3 {[%clk 0:00:04.2]} 49. Na4 {[%clk 0:00:19.1]} 49... Ke6 {[%clk
0:00:03.8]} 50. Kd4 {[%clk 0:00:19.1]} 50... Bc6 {[%clk 0:00:03.6]} 51. Nb2
{[%clk 0:00:19.7]} 51... Bf3 {[%clk 0:00:02.3]} 52. Kc3 {[%clk 0:00:17]} 52...
Bd5 {[%clk 0:00:02.4]} 53. Nd3 {[%clk 0:00:16.5]} 1-0

[Event "Late-Titled-Tuesday-Blitz-September-12-2023"]
[Site "Chess.com"]
[Date "2023.09.12"]
[Round "3"]
[White "Mops_2004"]
[Black "artooon"]
[Result "0-1"]
[WhiteElo "2720"]
[BlackElo "3046"]
[TimeControl "180+1"]
[EndTime "14:27:43 PDT"]
[Termination "artooon won on time"]

1. g3 {[%clk 0:03:00.9]} 1... d5 {[%clk 0:02:58]} 2. Nf3 {[%clk 0:03:00.4]} 2...
Nf6 {[%clk 0:02:58.9]} 3. Bg2 {[%clk 0:03:00.6]} 3... Bg4 {[%clk 0:02:57.5]} 4.
O-O {[%clk 0:03:00.6]} 4... Nbd7 {[%clk 0:02:57.4]} 5. h3 {[%clk 0:03:00.8]}
5... Bh5 {[%clk 0:02:57.4]} 6. d3 {[%clk 0:02:59]} 6... e6 {[%clk 0:02:56.9]} 7.
Qe1 {[%clk 0:02:58.7]} 7... h6 {[%clk 0:02:53.5]} 8. e4 {[%clk 0:02:57.4]} 8...
dxe4 {[%clk 0:02:54.4]} 9. dxe4 {[%clk 0:02:57.2]} 9... Be7 {[%clk 0:02:54.9]}
10. e5 {[%clk 0:02:49.8]} 10... Nd5 {[%clk 0:02:54.6]} 11. c4 {[%clk 0:02:50.5]}
11... Nb4 {[%clk 0:02:53.5]} 12. Qe2 {[%clk 0:02:49.4]} 12... Bg6 {[%clk
0:02:46.9]} 13. Ne1 {[%clk 0:02:40.2]} 13... Nc5 {[%clk 0:02:42.2]} 14. Nc3
{[%clk 0:02:38.4]} 14... O-O {[%clk 0:02:25.9]} 15. Be3 {[%clk 0:02:36.4]} 15...
Qc8 {[%clk 0:02:14.5]} 16. a3 {[%clk 0:02:25]} 16... Nbd3 {[%clk 0:02:07.3]} 17.
Bxc5 {[%clk 0:01:53.4]} 17... Nxc5 {[%clk 0:02:04.9]} 18. b4 {[%clk 0:01:53.9]}
18... Nb3 {[%clk 0:02:00.7]} 19. Rd1 {[%clk 0:01:53.7]} 19... c5 {[%clk
0:02:00.3]} 20. Nc2 {[%clk 0:01:40.7]} 20... cxb4 {[%clk 0:01:46.2]} 21. Nxb4
{[%clk 0:01:24.9]} 21... a5 {[%clk 0:01:44.5]} 22. Nba2 {[%clk 0:01:17.8]} 22...
Bxa3 {[%clk 0:01:40.1]} 23. Nb5 {[%clk 0:01:18]} 23... Be7 {[%clk 0:01:28.9]}
24. Nd6 {[%clk 0:01:17.5]} 24... Qc7 {[%clk 0:01:27.1]} 25. Nb5 {[%clk
0:01:11.4]} 25... Qc5 {[%clk 0:01:18.2]} 26. Rd7 {[%clk 0:01:07.2]} 26... a4
{[%clk 0:01:16.4]} 27. Rc7 {[%clk 0:01:03.5]} 27... Nd4 {[%clk 0:01:06.1]} 28.
Qb2 {[%clk 0:00:56.4]} 28... Nc6 {[%clk 0:00:59.7]} 29. Rxb7 {[%clk 0:00:53]}
29... Rfc8 {[%clk 0:00:46.6]} 30. Rd1 {[%clk 0:00:21.4]} 30... Na5 {[%clk
0:00:36.4]} 31. Rxe7 {[%clk 0:00:18.9]} 31... Qxe7 {[%clk 0:00:37.3]} 32. Bxa8
{[%clk 0:00:18.5]} 32... Rxa8 {[%clk 0:00:38.2]} 33. Qc3 {[%clk 0:00:16.7]}
33... Qb7 {[%clk 0:00:33.5]} 34. Nb4 {[%clk 0:00:12.3]} 34... Qe4 {[%clk
0:00:24.4]} 35. Nd6 {[%clk 0:00:10.6]} 35... Qe2 {[%clk 0:00:20.4]} 36. Re1
{[%clk 0:00:10.1]} 36... Qh5 {[%clk 0:00:20.9]} 37. g4 {[%clk 0:00:09.7]} 37...
Qh4 {[%clk 0:00:19.8]} 38. c5 {[%clk 0:00:10.4]} 38... h5 {[%clk 0:00:19.6]} 39.
c6 {[%clk 0:00:08.6]} 39... Nxc6 {[%clk 0:00:17.6]} 40. Qxc6 {[%clk 0:00:06.9]}
40... Rf8 {[%clk 0:00:15.4]} 41. Qf3 {[%clk 0:00:04.2]} 41... Rb8 {[%clk
0:00:16]} 42. Nc6 {[%clk 0:00:03.9]} 42... Rb3 {[%clk 0:00:16.5]} 43. Qg2 {[%clk
0:00:02.5]} 43... Rxh3 {[%clk 0:00:16.4]} 44. Ne7+ {[%clk 0:00:02.6]} 44... Kh7
{[%clk 0:00:16.6]} 45. Nxg6 {[%clk 0:00:03.5]} 45... fxg6 {[%clk 0:00:17.3]} 46.
Ne4 {[%clk 0:00:03.9]} 46... hxg4 {[%clk 0:00:15.9]} 47. Ng3 {[%clk 0:00:04.8]}
47... Qg5 {[%clk 0:00:13]} 48. Re3 {[%clk 0:00:04.9]} 48... a3 {[%clk
0:00:12.8]} 49. Ne4 {[%clk 0:00:05.5]} 49... Qh4 {[%clk 0:00:08.6]} 50. Rxh3
{[%clk 0:00:05.9]} 50... gxh3 {[%clk 0:00:09.5]} 51. Qf3 {[%clk 0:00:06.2]}
51... a2 {[%clk 0:00:10.1]} 0-1

[Event "Late-Titled-Tuesday-Blitz-September-12-2023"]
[Site "Chess.com"]
[Date "2023.09.12"]
[Round "3"]
[White "stasOR4ik"]
[Black "Dom1nant1337"]
[Result "1-0"]
[WhiteElo "2448"]
[BlackElo "2591"]
[TimeControl "180+1"]
[EndTime "14:27:43 PDT"]
[Termination "stasOR4ik won on time"]

1. e4 {[%clk 0:02:58.9]} 1... Nc6 {[%clk 0:02:59.4]} 2. d4 {[%clk 0:02:58]} 2...
d6 {[%clk 0:02:59.3]} 3. c4 {[%clk 0:02:57.5]} 3... e5 {[%clk 0:02:57.7]} 4. d5
{[%clk 0:02:57.7]} 4... Nd4 {[%clk 0:02:57.5]} 5. Be3 {[%clk 0:02:54]} 5... c5
{[%clk 0:02:53.5]} 6. dxc6 {[%clk 0:02:51.7]} 6... Nxc6 {[%clk 0:02:52.9]} 7.
Nc3 {[%clk 0:02:51.3]} 7... Nf6 {[%clk 0:02:50.2]} 8. Nf3 {[%clk 0:02:47.6]}
8... Be7 {[%clk 0:02:48.6]} 9. Be2 {[%clk 0:02:46.8]} 9... Ng4 {[%clk
0:02:46.6]} 10. Bc1 {[%clk 0:02:36.6]} 10... O-O {[%clk 0:02:44]} 11. h3 {[%clk
0:02:35.5]} 11... Nf6 {[%clk 0:02:43.2]} 12. O-O {[%clk 0:02:35.2]} 12... Be6
{[%clk 0:02:37]} 13. Nd5 {[%clk 0:01:38.5]} 13... Nxe4 {[%clk 0:02:32.6]} 14.
Qb3 {[%clk 0:01:27.9]} 14... Nc5 {[%clk 0:02:30.9]} 15. Qc2 {[%clk 0:01:23.9]}
15... Rc8 {[%clk 0:02:17.4]} 16. Rd1 {[%clk 0:01:18.1]} 16... Bxd5 {[%clk
0:02:08.7]} 17. Rxd5 {[%clk 0:01:17.5]} 17... Nb4 {[%clk 0:02:08.1]} 18. Qd1
{[%clk 0:01:15]} 18... Nxd5 {[%clk 0:02:07.5]} 19. Qxd5 {[%clk 0:01:15.9]} 19...
a5 {[%clk 0:01:59.1]} 20. a3 {[%clk 0:01:15.4]} 20... a4 {[%clk 0:01:57.6]} 21.
Be3 {[%clk 0:01:14.4]} 21... Qb6 {[%clk 0:01:42.6]} 22. Rb1 {[%clk 0:01:01.8]}
22... Qc6 {[%clk 0:01:42.3]} 23. Qd1 {[%clk 0:00:58]} 23... f5 {[%clk
0:01:41.5]} 24. Bxc5 {[%clk 0:00:41.5]} 24... Qxc5 {[%clk 0:01:40.5]} 25. Qxa4
{[%clk 0:00:41.3]} 25... e4 {[%clk 0:01:40.4]} 26. b4 {[%clk 0:00:35.1]} 26...
Qb6 {[%clk 0:01:34.6]} 27. Nd2 {[%clk 0:00:25.4]} 27... Bh4 {[%clk 0:01:29.8]}
28. g3 {[%clk 0:00:12.9]} 28... Bf6 {[%clk 0:01:13.3]} 29. Qb3 {[%clk
0:00:09.9]} 29... Bd4 {[%clk 0:01:11.2]} 30. c5+ {[%clk 0:00:09.5]} 30... Kh8
{[%clk 0:01:04.2]} 31. cxb6 {[%clk 0:00:09.7]} 31... Bxb6 {[%clk 0:01:01]} 32.
Nc4 {[%clk 0:00:09.9]} 32... Bc7 {[%clk 0:00:58.2]} 33. Rd1 {[%clk 0:00:10.2]}
33... Rcd8 {[%clk 0:00:57.5]} 34. Qe3 {[%clk 0:00:10]} 34... b5 {[%clk
0:00:56.2]} 35. Na5 {[%clk 0:00:08.6]} 35... d5 {[%clk 0:00:56.1]} 36. Nc6
{[%clk 0:00:08.7]} 36... Rd6 {[%clk 0:00:55.7]} 37. Bxb5 {[%clk 0:00:08.9]}
37... f4 {[%clk 0:00:53.6]} 38. gxf4 {[%clk 0:00:09]} 38... Rg6+ {[%clk
0:00:53.4]} 39. Kf1 {[%clk 0:00:09.5]} 39... Bxf4 {[%clk 0:00:53.5]} 40. Qe2
{[%clk 0:00:06.6]} 40... e3 {[%clk 0:00:52.3]} 41. Rxd5 {[%clk 0:00:05.1]} 41...
h6 {[%clk 0:00:27.7]} 42. f3 {[%clk 0:00:05.4]} 42... Kh7 {[%clk 0:00:21]} 43.
Bd3 {[%clk 0:00:05.1]} 43... Rf6 {[%clk 0:00:20.6]} 44. Bxg6+ {[%clk 0:00:05.4]}
44... Rxg6 {[%clk 0:00:21.5]} 45. Qd3 {[%clk 0:00:06]} 45... h5 {[%clk
0:00:09.6]} 46. Ne7 {[%clk 0:00:06.5]} 1-0

[Event "Late-Titled-Tuesday-Blitz-September-12-2023"]
[Site "Chess.com"]
[Date "2023.09.12"]
[Round "3"]
[White "DefiantChair"]
[Black "Schattman"]
[Result "0-1"]
[WhiteElo "2662"]
[BlackElo "2478"]
[TimeControl "180+1"]
[EndTime "14:27:44 PDT"]
[Termination "Schattman won by resignation"]

1. e4 {[%clk 0:03:00.9]} 1... c6 {[%clk 0:02:59.9]} 2. d4 {[%clk 0:03:00.9]}
2... d5 {[%clk 0:03:00.2]} 3. e5 {[%clk 0:02:58.4]} 3... Bf5 {[%clk 0:02:59.2]}
4. Nf3 {[%clk 0:02:57.3]} 4... e6 {[%clk 0:02:59.4]} 5. Be2 {[%clk 0:02:57.6]}
5... Nd7 {[%clk 0:02:59.2]} 6. O-O {[%clk 0:02:57.9]} 6... Ne7 {[%clk
0:02:59.3]} 7. Nbd2 {[%clk 0:02:57.7]} 7... Bg6 {[%clk 0:02:57.8]} 8. Nb3 {[%clk
0:02:57.8]} 8... Nf5 {[%clk 0:02:56]} 9. a4 {[%clk 0:02:57.8]} 9... a5 {[%clk
0:02:55]} 10. Bd2 {[%clk 0:02:49.9]} 10... Be7 {[%clk 0:02:54.8]} 11. g4 {[%clk
0:02:49.9]} 11... Nh4 {[%clk 0:02:53.4]} 12. Nxh4 {[%clk 0:02:50.2]} 12... Bxh4
{[%clk 0:02:53.2]} 13. f4 {[%clk 0:02:50.5]} 13... Be4 {[%clk 0:02:47.1]} 14. g5
{[%clk 0:02:41.1]} 14... h6 {[%clk 0:02:40.8]} 15. Qc1 {[%clk 0:02:39.8]} 15...
c5 {[%clk 0:02:29.1]} 16. dxc5 {[%clk 0:02:34.4]} 16... hxg5 {[%clk 0:02:20.4]}
17. fxg5 {[%clk 0:02:34.1]} 17... Nxe5 {[%clk 0:02:19.8]} 18. Bb5+ {[%clk
0:02:18.7]} 18... Kf8 {[%clk 0:02:08.4]} 19. Nd4 {[%clk 0:02:11]} 19... Kg8
{[%clk 0:01:47]} 20. Ra3 {[%clk 0:01:20.4]} 20... Rh5 {[%clk 0:01:41.5]} 21. Be2
{[%clk 0:01:15.2]} 21... Rxg5+ {[%clk 0:01:30.8]} 22. Bxg5 {[%clk 0:01:14]}
22... Bxg5 {[%clk 0:01:29.6]} 23. Qe1 {[%clk 0:00:46.9]} 23... Bh4 {[%clk
0:01:28.6]} 24. Qd2 {[%clk 0:00:47]} 24... Bg5 {[%clk 0:01:25.4]} 25. Qc3 {[%clk
0:00:30.7]} 25... Bh4 {[%clk 0:01:24.6]} 26. Qe3 {[%clk 0:00:29.5]} 26... Bg5
{[%clk 0:01:06.7]} 27. Qg3 {[%clk 0:00:28.7]} 27... Ng6 {[%clk 0:00:59.1]} 28.
Bh5 {[%clk 0:00:20.5]} 28... Bh4 {[%clk 0:00:52.4]} 29. Qg4 {[%clk 0:00:20.8]}
29... Bf6 {[%clk 0:00:49]} 30. Bxg6 {[%clk 0:00:20.2]} 30... Bxd4+ {[%clk
0:00:40]} 31. Rf2 {[%clk 0:00:20.2]} 31... Bxf2+ {[%clk 0:00:34.1]} 32. Kxf2
{[%clk 0:00:19.9]} 32... Bxg6 {[%clk 0:00:34.2]} 33. Ke1 {[%clk 0:00:19.5]}
33... Qf6 {[%clk 0:00:31.8]} 34. Rh3 {[%clk 0:00:19]} 34... Bf5 {[%clk
0:00:21.1]} 35. Qh4 {[%clk 0:00:18.3]} 35... Bxh3 {[%clk 0:00:20.2]} 36. Qxh3
{[%clk 0:00:18.5]} 36... Qe5+ {[%clk 0:00:17.8]} 37. Kd2 {[%clk 0:00:18.9]}
37... Qd4+ {[%clk 0:00:17.7]} 38. Kc1 {[%clk 0:00:19.4]} 38... Qxc5 {[%clk
0:00:17.7]} 39. Kb1 {[%clk 0:00:19.8]} 39... Rc8 {[%clk 0:00:17.6]} 40. c3
{[%clk 0:00:18.4]} 40... Qc4 {[%clk 0:00:16.5]} 41. Qg3 {[%clk 0:00:18.6]} 41...
Qe4+ {[%clk 0:00:15.8]} 42. Kc1 {[%clk 0:00:18.2]} 42... Qxa4 {[%clk 0:00:15.1]}
43. Qd6 {[%clk 0:00:18.1]} 43... Qc4 {[%clk 0:00:14.7]} 44. Kb1 {[%clk
0:00:18.2]} 44... Qc7 {[%clk 0:00:14.6]} 45. Qa3 {[%clk 0:00:16.6]} 45... Qc5
{[%clk 0:00:14.1]} 46. Qa4 {[%clk 0:00:17.1]} 46... d4 {[%clk 0:00:13.8]} 47.
cxd4 {[%clk 0:00:16.5]} 47... Qc4 {[%clk 0:00:12.9]} 48. Qd7 {[%clk 0:00:14.7]}
48... Qc6 {[%clk 0:00:12.2]} 49. Qe7 {[%clk 0:00:14.5]} 49... b5 {[%clk
0:00:11.2]} 50. h4 {[%clk 0:00:14]} 50... b4 {[%clk 0:00:11.4]} 51. h5 {[%clk
0:00:14.4]} 51... b3 {[%clk 0:00:11.7]} 52. Qg5 {[%clk 0:00:14.3]} 52... Qc2+
{[%clk 0:00:10]} 0-1

[Event "Late-Titled-Tuesday-Blitz-September-12-2023"]
[Site "Chess.com"]
[Date "2023.09.12"]
[Round "3"]
[White "Sinquefield"]
[Black "TatjanaVasilevich"]
[Result "1-0"]
[WhiteElo "2443"]
[BlackElo "2571"]
[TimeControl "180+1"]
[EndTime "14:27:46 PDT"]
[Termination "Sinquefield won by checkmate"]

1. d4 {[%clk 0:03:00.9]} 1... Nf6 {[%clk 0:02:53.4]} 2. Bg5 {[%clk 0:02:59.7]}
2... Ne4 {[%clk 0:02:53.3]} 3. Bh4 {[%clk 0:02:58.5]} 3... g5 {[%clk 0:02:51.8]}
4. f3 {[%clk 0:02:58.4]} 4... gxh4 {[%clk 0:02:48.9]} 5. fxe4 {[%clk 0:02:58.4]}
5... d5 {[%clk 0:02:49.5]} 6. e5 {[%clk 0:02:58.3]} 6... c5 {[%clk 0:02:48.7]}
7. e3 {[%clk 0:02:56]} 7... Nc6 {[%clk 0:02:48.5]} 8. c3 {[%clk 0:02:54.9]} 8...
Qb6 {[%clk 0:02:47.7]} 9. b3 {[%clk 0:02:51.7]} 9... Bh6 {[%clk 0:02:47.4]} 10.
Qd3 {[%clk 0:02:49.4]} 10... cxd4 {[%clk 0:02:44.7]} 11. exd4 {[%clk 0:02:49]}
11... Be6 {[%clk 0:02:44.1]} 12. Nf3 {[%clk 0:02:48.7]} 12... Rc8 {[%clk
0:02:43.6]} 13. Be2 {[%clk 0:02:43.5]} 13... h3 {[%clk 0:02:39]} 14. g3 {[%clk
0:02:43.6]} 14... Bg4 {[%clk 0:02:26.6]} 15. Nbd2 {[%clk 0:02:40.2]} 15... e6
{[%clk 0:02:24.2]} 16. O-O {[%clk 0:02:34]} 16... Bxd2 {[%clk 0:02:21]} 17. Qxd2
{[%clk 0:02:17.2]} 17... Bxf3 {[%clk 0:02:19.8]} 18. Bxf3 {[%clk 0:02:16.9]}
18... Nxe5 {[%clk 0:02:19.8]} 19. Bxd5 {[%clk 0:02:11.1]} 19... exd5 {[%clk
0:02:15.7]} 20. Rae1 {[%clk 0:02:11.6]} 20... f6 {[%clk 0:02:15.4]} 21. Kh1
{[%clk 0:01:59.7]} 21... O-O {[%clk 0:02:14.2]} 22. dxe5 {[%clk 0:01:57.4]}
22... d4 {[%clk 0:02:12]} 23. cxd4 {[%clk 0:01:51.6]} 23... Qc6+ {[%clk
0:02:11.7]} 24. Kg1 {[%clk 0:01:52]} 24... fxe5 {[%clk 0:02:02.9]} 25. Qg5+
{[%clk 0:01:50.2]} 25... Qg6 {[%clk 0:02:02.9]} 26. Qxg6+ {[%clk 0:01:49.4]}
26... hxg6 {[%clk 0:02:03.1]} 27. Rxf8+ {[%clk 0:01:46.1]} 27... Kxf8 {[%clk
0:02:03.3]} 28. dxe5 {[%clk 0:01:46.5]} 28... Rc2 {[%clk 0:02:02.2]} 29. a4
{[%clk 0:01:44.8]} 29... Rb2 {[%clk 0:02:01.3]} 30. Re3 {[%clk 0:01:31.6]} 30...
Rb1+ {[%clk 0:02:00.9]} 31. Kf2 {[%clk 0:01:31.4]} 31... Rh1 {[%clk 0:02:01.5]}
32. Kf3 {[%clk 0:01:29.5]} 32... Rxh2 {[%clk 0:02:01.1]} 33. Re1 {[%clk
0:01:22.4]} 33... Rb2 {[%clk 0:01:57.6]} 34. Kf4 {[%clk 0:01:20.9]} 34... Rxb3
{[%clk 0:01:55.6]} 35. Rh1 {[%clk 0:01:17.7]} 35... Rb4+ {[%clk 0:01:31.4]} 36.
Kg5 {[%clk 0:01:16.1]} 36... Kg7 {[%clk 0:01:31.6]} 37. Rxh3 {[%clk 0:01:13.9]}
37... Re4 {[%clk 0:01:31.5]} 38. g4 {[%clk 0:00:47.4]} 38... Rxe5+ {[%clk
0:01:30.9]} 39. Kh4 {[%clk 0:00:47.2]} 39... Ra5 {[%clk 0:01:20.1]} 40. Rb3
{[%clk 0:00:45.5]} 40... b6 {[%clk 0:01:19.8]} 41. Rb4 {[%clk 0:00:45]} 41...
Kf6 {[%clk 0:01:20]} 42. Rc4 {[%clk 0:00:36.3]} 42... Ke5 {[%clk 0:01:00.4]} 43.
Kg5 {[%clk 0:00:36]} 43... Kd5 {[%clk 0:00:59.7]} 44. Rf4 {[%clk 0:00:33.1]}
44... Ke5 {[%clk 0:00:59.9]} 45. Rb4 {[%clk 0:00:30.2]} 45... Kd6+ {[%clk
0:00:40.7]} 46. Kxg6 {[%clk 0:00:29.1]} 46... Re5 {[%clk 0:00:40.4]} 47. g5
{[%clk 0:00:23.2]} 47... Re1 {[%clk 0:00:40.6]} 48. Kg7 {[%clk 0:00:20.8]} 48...
Kc5 {[%clk 0:00:39.4]} 49. Rg4 {[%clk 0:00:19.6]} 49... a6 {[%clk 0:00:37]} 50.
g6 {[%clk 0:00:19.7]} 50... b5 {[%clk 0:00:37.4]} 51. axb5 {[%clk 0:00:18.3]}
51... axb5 {[%clk 0:00:37.6]} 52. Kh8 {[%clk 0:00:17.3]} 52... Rh1+ {[%clk
0:00:37.5]} 53. Kg8 {[%clk 0:00:17.5]} 53... b4 {[%clk 0:00:37.8]} 54. g7 {[%clk
0:00:17.7]} 54... b3 {[%clk 0:00:38.1]} 55. Kf7 {[%clk 0:00:15.6]} 55... Rf1+
{[%clk 0:00:36.6]} 56. Ke8 {[%clk 0:00:08.8]} 56... Re1+ {[%clk 0:00:36.2]} 57.
Kd8 {[%clk 0:00:09]} 57... Rd1+ {[%clk 0:00:27.2]} 58. Kc7 {[%clk 0:00:05.5]}
58... b2 {[%clk 0:00:26.8]} 59. g8=Q {[%clk 0:00:05.6]} 59... b1=Q {[%clk
0:00:27.2]} 60. Qc4# {[%clk 0:00:04.9]} 1-0

[Event "Late-Titled-Tuesday-Blitz-September-12-2023"]
[Site "Chess.com"]
[Date "2023.09.12"]
[Round "3"]
[White "MikaelyanArman"]
[Black "DryCounty"]
[Result "1/2-1/2"]
[WhiteElo "2922"]
[BlackElo "2647"]
[TimeControl "180+1"]
[EndTime "14:27:47 PDT"]
[Termination "Game drawn - insufficient material"]

1. d4 {[%clk 0:03:00.9]} 1... Nf6 {[%clk 0:02:59.4]} 2. Nf3 {[%clk 0:03:01.4]}
2... g6 {[%clk 0:02:57.4]} 3. g3 {[%clk 0:02:59.8]} 3... Bg7 {[%clk 0:02:57.3]}
4. Bg2 {[%clk 0:03:00.6]} 4... O-O {[%clk 0:02:57.4]} 5. O-O {[%clk 0:03:01.3]}
5... d6 {[%clk 0:02:57.7]} 6. a4 {[%clk 0:03:00.1]} 6... a5 {[%clk 0:02:56.9]}
7. Nc3 {[%clk 0:02:55.4]} 7... Nc6 {[%clk 0:02:55.5]} 8. d5 {[%clk 0:02:47]}
8... Nb4 {[%clk 0:02:53.6]} 9. Nd4 {[%clk 0:02:47.4]} 9... Bd7 {[%clk
0:02:49.9]} 10. e4 {[%clk 0:02:20]} 10... c6 {[%clk 0:02:48.1]} 11. Re1 {[%clk
0:02:17.7]} 11... Rc8 {[%clk 0:02:42.7]} 12. h3 {[%clk 0:02:12.3]} 12... Re8
{[%clk 0:02:28.1]} 13. Be3 {[%clk 0:02:07.3]} 13... cxd5 {[%clk 0:02:08.8]} 14.
exd5 {[%clk 0:02:08.2]} 14... Rxc3 {[%clk 0:02:08.3]} 15. bxc3 {[%clk
0:02:09.1]} 15... Nbxd5 {[%clk 0:02:08.2]} 16. Bd2 {[%clk 0:02:07.3]} 16... Qc8
{[%clk 0:02:08.1]} 17. g4 {[%clk 0:01:54.9]} 17... Nxc3 {[%clk 0:02:02.4]} 18.
Qf3 {[%clk 0:01:43.8]} 18... Nfd5 {[%clk 0:01:57.7]} 19. Nb3 {[%clk 0:01:28.6]}
19... b6 {[%clk 0:01:46.6]} 20. Qd3 {[%clk 0:01:27.2]} 20... Nb4 {[%clk
0:01:39.9]} 21. Qf1 {[%clk 0:01:13.8]} 21... Nxc2 {[%clk 0:01:31.7]} 22. Rac1
{[%clk 0:01:14]} 22... Nxe1 {[%clk 0:01:29.7]} 23. Qxe1 {[%clk 0:01:14.9]} 23...
Bxa4 {[%clk 0:01:19.7]} 24. Bxc3 {[%clk 0:01:15.1]} 24... Bxc3 {[%clk
0:01:14.4]} 25. Rxc3 {[%clk 0:01:16]} 25... Qe6 {[%clk 0:01:04.9]} 26. Qxe6
{[%clk 0:01:04.8]} 26... fxe6 {[%clk 0:01:05.8]} 27. Nd4 {[%clk 0:01:05.3]}
27... e5 {[%clk 0:01:03.5]} 28. Bd5+ {[%clk 0:00:54.8]} 28... Kh8 {[%clk
0:01:03.3]} 29. Ne6 {[%clk 0:00:54.5]} 29... Bd7 {[%clk 0:01:00.8]} 30. Rc7
{[%clk 0:00:53.5]} 30... Bxe6 {[%clk 0:00:51.8]} 31. Bxe6 {[%clk 0:00:54.4]}
31... Kg7 {[%clk 0:00:43.9]} 32. g5 {[%clk 0:00:54.8]} 32... h6 {[%clk
0:00:44.1]} 33. h4 {[%clk 0:00:55.4]} 33... hxg5 {[%clk 0:00:44.4]} 34. hxg5
{[%clk 0:00:56.3]} 34... b5 {[%clk 0:00:39.1]} 35. Ra7 {[%clk 0:00:41.8]} 35...
a4 {[%clk 0:00:38.1]} 36. Kg2 {[%clk 0:00:40.2]} 36... Kf8 {[%clk 0:00:37]} 37.
Ra5 {[%clk 0:00:30.4]} 37... Rb8 {[%clk 0:00:35.7]} 38. Bd7 {[%clk 0:00:31]}
38... b4 {[%clk 0:00:34.4]} 39. Bxa4 {[%clk 0:00:31]} 39... b3 {[%clk
0:00:34.3]} 40. Rb5 {[%clk 0:00:28.5]} 40... Rxb5 {[%clk 0:00:33.6]} 41. Bxb5
{[%clk 0:00:29.4]} 41... b2 {[%clk 0:00:26.9]} 42. Bd3 {[%clk 0:00:29.5]} 42...
Kf7 {[%clk 0:00:26.3]} 43. Kf3 {[%clk 0:00:17.5]} 43... d5 {[%clk 0:00:25.8]}
44. Bb1 {[%clk 0:00:18.2]} 44... e4+ {[%clk 0:00:23.5]} 45. Ke3 {[%clk
0:00:17.8]} 45... Ke6 {[%clk 0:00:23.7]} 46. Kd4 {[%clk 0:00:16.4]} 46... Kd6
{[%clk 0:00:20.5]} 47. Kc3 {[%clk 0:00:16.6]} 47... Ke5 {[%clk 0:00:19.5]} 48.
Kxb2 {[%clk 0:00:15.4]} 48... Kf4 {[%clk 0:00:19.7]} 49. Kc3 {[%clk 0:00:16]}
49... e5 {[%clk 0:00:17.6]} 50. Kd2 {[%clk 0:00:13.9]} 50... Kxg5 {[%clk
0:00:13.9]} 51. Ke3 {[%clk 0:00:10.4]} 51... Kf5 {[%clk 0:00:07.2]} 52. f3
{[%clk 0:00:02.6]} 52... d4+ {[%clk 0:00:07.4]} 53. Kf2 {[%clk 0:00:03.2]} 53...
d3 {[%clk 0:00:06.4]} 54. Ke3 {[%clk 0:00:03.8]} 54... exf3 {[%clk 0:00:05.4]}
55. Bxd3+ {[%clk 0:00:04.1]} 55... Kg4 {[%clk 0:00:05.7]} 56. Bxg6 {[%clk
0:00:04.3]} 56... Kg3 {[%clk 0:00:05.2]} 57. Bd3 {[%clk 0:00:04.5]} 57... f2
{[%clk 0:00:05.2]} 58. Ke4 {[%clk 0:00:05.1]} 58... Kg2 {[%clk 0:00:04.7]} 59.
Kxe5 {[%clk 0:00:05.7]} 59... f1=Q {[%clk 0:00:04.9]} 60. Bxf1+ {[%clk
0:00:06.3]} 1/2-1/2